Workbook

Sheet Лист1
A1: Школа | C1: МБОУ "Теньковская СОШ" | F1: Утвердил: | G1: должность | H1: директор
A2: Типовое примерное меню приготавливаемых блюд | G2: фамилия | H2: Тагирова М.Г.
A3: Возрастная категория | E3: 7-11 лет | G3: дата | H3: 2 | I3: 9 | J3: 2024
H4: день | I4: месяц | J4: год
A5: Неделя | B5: День недели | C5: Прием пищи | D5: Раздел меню | E5: Блюда | F5: Вес блюда, г | G5: Белки | H5: Жиры | I5: Углеводы | J5: Калорийность | K5: № рецептуры | L5: Цена
A6: 1 | B6: 1 | C6: Завтрак | D6: доп.гарнир | E6: Зеленый горошек | F6: 40 | G6: 1.19 | H6: 2.08 | I6: 2.5 | J6: 33.44 | K6: ТТК | L6: 66.76
D7: гор.блюдо | E7: Макаронные изделия отварные с маслом сливочным | F7: 155 | G7: 5.7 | H7: 4.3 | I7: 31.99 | J7: 189.3 | K7: 203
D8: гор.блюдо | E8: Котлета из мяса птицы | F8: 90 | G8: 10.2 | H8: 12.93 | I8: 13.79 | J8: 198 | K8: ТТК
D9: гор.напиток | E9: Компот из сухофруктов (75С) | F9: 200 | G9: 0.66 | H9: 0.09 | I9: 22.03 | J9: 92.8 | K9: 349
D10: хлеб черн. | E10: Хлеб ржаной | F10: 30 | G10: 1.98 | H10: 0.36 | I10: 11.88 | J10: 59.4
D14: итого | F14: =SUM(F6:F13) -> 515 | G14: =SUM(G6:G13) -> 19.73 | H14: 19.76 | I14: 82.19 | J14: 572.94 | L14: =SUM(L6:L13) -> 66.76
A15: =A6 -> 1 | B15: =B6 -> 1 | C15: Обед | D15: закуска
D16: 1 блюдо
D17: 2 блюдо
D18: гарнир
D19: напиток
D20: хлеб бел.
D21: хлеб черн.
D24: итого | F24: =SUM(F15:F23) -> 0 | G24: =SUM(G15:G23) -> 0 | H24: 0 | I24: 0 | J24: 0 | L24: =SUM(L15:L23) -> 0
A25: =A6 -> 1 | B25: =B6 -> 1 | C25: Итого за день: | F25: =F14+F24 -> 515 | G25: =G14+G24 -> 19.73 | H25: 19.76 | I25: 82.19 | J25: 572.94 | L25: =L14+L24 -> 66.76
A26: 1 | B26: 2 | C26: Завтрак | D26: гор.блюдо | E26: Сырники из творога с молочной кашей "Дружба" | F26: 200 | G26: 12.92 | H26: 14.39 | I26: 31.09 | J26: 292.26 | K26: 175.219 | L26: 66.76
D27: гор.блюдо
D28: гор.напиток | E28: Чай с сахаром | F28: 200 | G28: 0.07 | H28: 0.02 | I28: 10.01 | J28: 40 | K28: 376
D29: хлеб бел. | E29: Хлеб ржаной | F29: 40 | G29: 2.64 | H29: 0.48 | I29: 15.84 | J29: 79.2
D30: фрукты | E30: Плоды и ягоды свежие (яблоки) | F30: 100 | G30: 0.4 | H30: 0.4 | I30: 9.8 | J30: 47
D33: итого | F33: =SUM(F26:F32) -> 540 | G33: =SUM(G26:G32) -> 16.03 | H33: =SUM(H26:H32) -> 15.29 | I33: =SUM(I26:I32) -> 66.74 | J33: =SUM(J26:J32) -> 458.46 | L33: 66.76
A34: =A26 -> 1 | B34: =B26 -> 2 | C34: Обед | D34: закуска
D35: 1 блюдо
D36: 2 блюдо
D37: гарнир
D38: напиток
D39: хлеб бел.
D40: хлеб черн.
D43: итого | F43: =SUM(F34:F42) -> 0 | G43: =SUM(G34:G42) -> 0 | H43: =SUM(H34:H42) -> 0 | I43: =SUM(I34:I42) -> 0 | J43: =SUM(J34:J42) -> 0 | L43: 0
A44: =A26 -> 1 | B44: =B26 -> 2 | C44: Итого за день: | F44: =F33+F43 -> 540 | G44: =G33+G43 -> 16.03 | H44: =H33+H43 -> 15.29 | I44: =I33+I43 -> 66.74 | J44: =J33+J43 -> 458.46 | L44: 66.76
A45: 1 | B45: 3 | C45: Завтрак | D45: закуска
D46: гор.блюдо | E46: Гуляш из говядины | F46: 100 | G46: 10.39 | H46: 14.79 | I46: 10.3 | J46: 221 | K46: 260 | L46: 66.76
D47: гор.блюдо | E47: Каша гречневая рассыпчатая | F47: 150 | G47: 3.77 | H47: 2.29 | I47: 39.72 | J47: 214 | K47: 171
D48: гор.напиток | E48: Чай с сахаром, с лимоном | F48: 200 | G48: 0.11 | H48: 0.02 | I48: 10.15 | J48: 41.32 | K48: 377
D49: хлеб бел.
D50: хлеб черн. | E50: Хлеб ржаной | F50: 50 | G50: 3.3 | H50: 0.6 | I50: 19.8 | J50: 99
E51: Сыр порционно | F51: 10 | G51: 2.63 | H51: 2.66 | I51: 0 | J51: 34.33 | K51: 15
D53: итого | F53: =SUM(F45:F52) -> 510 | G53: =SUM(G45:G52) -> 20.2 | H53: =SUM(H45:H52) -> 20.36 | I53: =SUM(I45:I52) -> 79.97 | J53: =SUM(J45:J52) -> 609.65 | L53: 66.76
A54: =A45 -> 1 | B54: =B45 -> 3 | C54: Обед | D54: закуска
D55: 1 блюдо
D56: 2 блюдо
D57: гарнир
D58: напиток
D59: хлеб бел.
D60: хлеб черн.
D63: итого | F63: =SUM(F54:F62) -> 0 | G63: =SUM(G54:G62) -> 0 | H63: =SUM(H54:H62) -> 0 | I63: =SUM(I54:I62) -> 0 | J63: =SUM(J54:J62) -> 0 | L63: 0
A64: =A45 -> 1 | B64: =B45 -> 3 | C64: Итого за день: | F64: =F53+F63 -> 510 | G64: =G53+G63 -> 20.2 | H64: =H53+H63 -> 20.36 | I64: =I53+I63 -> 79.97 | J64: =J53+J63 -> 609.65 | L64: 66.76
A65: 1 | B65: 4 | C65: Завтрак | D65: закуска | E65: Салат из свеклы отварной с маслом растительным | F65: 60 | G65: 0.84 | H65: 3.61 | I65: 4.96 | J65: 55.68 | K65: 52 | L65: 66.76
D66: гор.блюдо | E66: Котлета из мяса птицы | F66: 90 | G66: 10.2 | H66: 12.93 | I66: 13.79 | J66: 198 | K66: ТТК
D67: гор.блюдо | E67: Пюре картофельное с мслом сливочным | F67: 153 | G67: 4.11 | H67: 3.55 | I67: 30.79 | J67: 202.8 | K67: 312
D68: гор.напиток | E68: Чай с сахаром, с яблоком | F68: 200 | G68: 0.11 | H68: 0.06 | I68: 10.98 | J68: 44.7 | K68: 376
D69: хлеб бел. | E69: Хлеб пшеничный | F69: 20 | G69: 1.52 | H69: 0.16 | I69: 9.84 | J69: 47
D70: хлеб черн. | E70: Хлеб ржаной | F70: 30 | G70: 1.98 | H70: 0.36 | I70: 11.88 | J70: 59.4
D73: итого | F73: =SUM(F65:F72) -> 553 | G73: =SUM(G65:G72) -> 18.76 | H73: =SUM(H65:H72) -> 20.67 | I73: =SUM(I65:I72) -> 82.24 | J73: =SUM(J65:J72) -> 607.58 | L73: 66.76
A74: =A65 -> 1 | B74: =B65 -> 4 | C74: Обед | D74: закуска
D75: 1 блюдо
D76: 2 блюдо
D77: гарнир
D78: напиток
D79: хлеб бел.
D80: хлеб черн.
D83: итого | F83: =SUM(F74:F82) -> 0 | G83: =SUM(G74:G82) -> 0 | H83: =SUM(H74:H82) -> 0 | I83: =SUM(I74:I82) -> 0 | J83: =SUM(J74:J82) -> 0 | L83: 0
A84: =A65 -> 1 | B84: =B65 -> 4 | C84: Итого за день: | F84: =F73+F83 -> 553 | G84: =G73+G83 -> 18.76 | H84: =H73+H83 -> 20.67 | I84: =I73+I83 -> 82.24 | J84: =J73+J83 -> 607.58 | L84: 66.76
A85: 1 | B85: 5 | C85: Завтрак | D85: закуска
D86: гор.блюдо | E86: Пельмени мясные отварные с маслом сливочным | F86: 155 | G86: 8.79 | H86: 11.2 | I86: 31.4 | J86: 295.65 | K86: 390,391,392 | L86: 66.76
D87: гор.блюдо
D88: гор.напиток | E88: Кофейный напиток с молоком, с сахаром | F88: 200 | G88: 3.17 | H88: 2.68 | I88: 15.95 | J88: 100.6 | K88: 379
D89: хлеб бел. | E89: Хлеб пшеничный | F89: 25 | G89: 1.9 | H89: 0.2 | I89: 12.3 | J89: 58.75
D90: хлеб черн. | E90: Хлеб ржаной | F90: 30 | G90: 1.98 | H90: 0.36 | I90: 11.88 | J90: 59.4
D91: фрукты | E91: Плоды и ягоды свежие (яблоки) | F91: 100 | G91: 0.4 | H91: 0.4 | I91: 9.8 | J91: 47
E92: Сыр порционно | F92: 15 | G92: 3.95 | H92: 3.99 | I92: 0 | J92: 51.5 | K92: 15
D93: итого | F93: 525 | G93: 20.19 | H93: 18.83 | I93: 81.33 | J93: 612.9 | L93: 66.76
A94: 1 | B94: 5 | C94: Обед | D94: закуска
D95: 1 блюдо
D96: 2 блюдо
D97: гарнир
D98: напиток
D99: хлеб бел.
D100: хлеб черн.
D103: итого | F103: 0 | G103: 0 | H103: 0 | I103: 0 | J103: 0 | L103: 0
A104: 1 | B104: 6 | C104: Итого за день: | F104: 525 | G104: 20.19 | H104: 18.83 | I104: 81.33 | J104: 612.9 | L104: 66.76
A105: 1 | B105: 6 | C105: Завтрак | D105: закуска | E105: Салат из квашеной капусты | F105: 60 | G105: 1.02 | H105: 3 | I105: 5.07 | J105: 51.42 | K105: 47 | L105: 66.76
D106: гор.блюдо | E106: Биточки рыбные | F106: 90 | G106: 13.17 | H106: 10.7 | I106: 15.79 | J106: 193.3 | K106: 390,391,392
D107: гор.блюдо | E107: Рис отварной рассыпчатый с маслом сливочным | F107: 153 | G107: 3.63 | H107: 6.5 | I107: 37.58 | J107: 223.35 | K107: 302
D108: гор.напиток | E108: Чай с сахаром, с лимоном | F108: 200 | G108: 0.11 | H108: 0.02 | I108: 10.15 | J108: 41.32 | K108: 377
D109: хлеб бел.
D110: хлеб черн. | E110: Хлеб ржаной | F110: 30 | G110: 1.98 | H110: 0.36 | I110: 11.88 | J110: 59.4
D111: фрукты
D113: итого | F113: 533 | G113: 19.91 | H113: 20.58 | I113: 80.47 | J113: 568.79 | L113: 66.76
A114: 1 | B114: 6 | C114: Обед | D114: закуска
D115: 1 блюдо
D116: 2 блюдо
D117: гарнир
D118: напиток
D119: хлеб бел.
D120: хлеб черн.
D123: итого | F123: 0 | G123: 0 | H123: 0 | I123: 0 | J123: 0 | L123: 0
A124: =A105 -> 1 | B124: =B105 -> 6 | C124: Итого за день: | F124: =F113+F123 -> 533 | G124: =G113+G123 -> 19.91 | H124: =H113+H123 -> 20.58 | I124: =I113+I123 -> 80.47 | J124: =J113+J123 -> 568.79 | L124: 66.76
A125: 2 | B125: 1 | C125: Завтрак | D125: гор.блюдо | E125: Котлета из мяса птицы | F125: 90 | G125: 10.2 | H125: 12.93 | I125: 13.79 | J125: 198 | L125: 66.76
D126: гор.блюдо | E126: Каша пшеная молочная с маслом сливочным | F126: 183 | G126: 4.09 | H126: 5.08 | I126: 37.26 | J126: 216.9 | K126: 182
D127: гор.напиток | E127: Чай "Витаминный" с шиповником | F127: 200 | G127: 0.24 | H127: 0.09 | I127: 12.43 | J127: 54.2 | K127: 376
D128: хлеб бел. | E128: Хлеб пшеничный | F128: 25 | G128: 1.9 | H128: 0.2 | I128: 12.3 | J128: 58.75
D129: хлеб черн. | E129: Хлеб ржаной | F129: 30 | G129: 1.98 | H129: 0.36 | I129: 11.88 | J129: 59.4
D132: итого | F132: =SUM(F125:F131) -> 528 | G132: =SUM(G125:G131) -> 18.41 | H132: 18.66 | I132: 87.66 | J132: 587.25 | L132: =SUM(L125:L131) -> 66.76
A133: =A125 -> 2 | B133: =B125 -> 1 | C133: Обед | D133: закуска
D134: 1 блюдо
D135: 2 блюдо
D136: гарнир
D137: напиток
D138: хлеб бел.
D139: хлеб черн.
D142: итого | F142: =SUM(F133:F141) -> 0 | G142: =SUM(G133:G141) -> 0 | H142: 0 | I142: 0 | J142: 0 | L142: =SUM(L133:L141) -> 0
A143: =A125 -> 2 | B143: =B125 -> 1 | C143: Итого за день: | F143: =F132+F142 -> 528 | G143: =G132+G142 -> 18.41 | H143: =H132+H142 -> 18.66 | I143: =I132+I142 -> 87.66 | J143: =J132+J142 -> 587.25 | L143: 66.76
A144: 2 | B144: 2 | C144: Завтрак
D145: гор.блюдо | E145: Плов из говядины с рисовой крупой | F145: 200 | G145: 15.95 | H145: 19.55 | I145: 39.75 | J145: 408.42 | K145: 265 | L145: 66.76
D146: гор.напиток | E146: Чай с сахаром | F146: 200 | G146: 0.07 | H146: 0.02 | I146: 10.01 | J146: 40 | K146: 376
D147: хлеб бел. | E147: Хлеб пшеничный | F147: 25 | G147: 1.9 | H147: 0.2 | I147: 12.3 | J147: 58.75
D148: хлеб черн. | E148: Хлеб ржаной | F148: 20 | G148: 1.32 | H148: 0.24 | I148: 7.92 | J148: 39.6
D149: фрукты | E149: Плоды и ягоды свежие (яблоки) | F149: 100 | G149: 0.4 | H149: 0.4 | I149: 9.8 | J149: 47
D151: итого | F151: =SUM(F144:F150) -> 545 | G151: =SUM(G144:G150) -> 19.64 | H151: 20.41 | I151: 79.78 | J151: 593.77 | L151: =SUM(L144:L150) -> 66.76
A152: =A144 -> 2 | B152: =B144 -> 2 | C152: Обед | D152: закуска
D153: 1 блюдо
D154: 2 блюдо
D155: гарнир
D156: напиток
D157: хлеб бел.
D158: хлеб черн.
D161: итого | F161: =SUM(F152:F160) -> 0 | G161: =SUM(G152:G160) -> 0 | H161: 0 | I161: 0 | J161: 0 | L161: =SUM(L152:L160) -> 0
A162: =A144 -> 2 | B162: =B144 -> 2 | C162: Итого за день: | F162: =F151+F161 -> 545 | G162: =G151+G161 -> 19.64 | H162: =H151+H161 -> 20.41 | I162: =I151+I161 -> 79.78 | J162: =J151+J161 -> 593.77 | L162: 66.76
A163: 2 | B163: 3 | C163: Завтрак | D163: доп.гарнир | E163: Капуста тушеная | F163: 50 | G163: 1.03 | H163: 1.62 | I163: 4.71 | J163: 37.55 | K163: 321 | L163: 66.76
D164: гор.блюдо | E164: Рыба тушеная в томате с овощами | F164: 100 | G164: 9.05 | H164: 6.09 | I164: 3.8 | J164: 105 | K164: 229
D165: гор.блюдо | E165: Пюре картофельное | F165: 150 | G165: 3.09 | H165: 6.98 | I165: 20.48 | J165: 157.05 | K165: 312
D166: гор.напиток | E166: Компот из свежих яблок (75С) | F166: 200 | G166: 0.16 | H166: 0.16 | I166: 17.9 | J166: 74.6 | K166: 342
D167: хлеб бел. | E167: Хлеб пшеничный | F167: 35 | G167: 2.66 | H167: 0.28 | I167: 17.22 | J167: 82.25
D168: хлеб черн.
D170: итого | F170: =SUM(F163:F169) -> 535 | G170: =SUM(G163:G169) -> 15.99 | H170: 15.13 | I170: 64.11 | J170: 456.45 | L170: =SUM(L163:L169) -> 66.76
A171: =A163 -> 2 | B171: =B163 -> 3 | C171: Обед | D171: закуска
D172: 1 блюдо
D173: 2 блюдо
D174: гарнир
D175: напиток
D176: хлеб бел.
D177: хлеб черн.
D180: итого | F180: =SUM(F171:F179) -> 0 | G180: =SUM(G171:G179) -> 0 | H180: 0 | I180: 0 | J180: 0 | L180: =SUM(L171:L179) -> 0
A181: =A163 -> 2 | B181: =B163 -> 3 | C181: Итого за день: | F181: =F170+F180 -> 535 | G181: =G170+G180 -> 15.99 | H181: =H170+H180 -> 15.13 | I181: =I170+I180 -> 64.11 | J181: =J170+J180 -> 456.45 | L181: 66.76
A182: 2 | B182: 4 | C182: Завтрак | D182: гор.блюдо | E182: Тефтели куриные с гречневой крупой в сметанно-томатном соусе | F182: 100 | G182: 3.17 | H182: 5.19 | I182: 9.85 | J182: 118.01 | K182: ТТК | L182: 66.76
D183: гор.блюдо | E183: Макаронные изделия отварные с маслом сливочным | F183: 183 | G183: 6.64 | H183: 7.6 | I183: 31.78 | J183: 221.94 | K183: 203
D184: гор.напиток | E184: Какао с молоком | F184: 200 | G184: 4.08 | H184: 3.54 | I184: 7.6 | J184: 78.6 | K184: 382
D185: хлеб бел. | E185: Хлеб пшеничный | F185: 30 | G185: 2.28 | H185: 0.24 | I185: 14.76 | J185: 70.5
D186: фрукты
D189: итого | F189: =SUM(F182:F188) -> 513 | G189: =SUM(G182:G188) -> 16.17 | H189: 16.57 | I189: 63.99 | J189: 489.05 | L189: =SUM(L182:L188) -> 66.76
A190: =A182 -> 2 | B190: =B182 -> 4 | C190: Обед | D190: закуска
D191: 1 блюдо
D192: 2 блюдо
D193: гарнир
D194: напиток
D195: хлеб бел.
D196: хлеб черн.
D199: итого | F199: =SUM(F190:F198) -> 0 | G199: =SUM(G190:G198) -> 0 | H199: 0 | I199: 0 | J199: 0 | L199: =SUM(L190:L198) -> 0
A200: =A182 -> 2 | B200: =B182 -> 4 | C200: Итого за день: | F200: =F189+F199 -> 513 | G200: =G189+G199 -> 16.17 | H200: =H189+H199 -> 16.57 | I200: =I189+I199 -> 63.99 | J200: =J189+J199 -> 489.05 | L200: 66.76
A201: 2 | B201: 5 | C201: Завтрак | D201: закуска
D202: гор.блюдо | E202: Овощи тушеные с мясом | F202: 200 | G202: 12.48 | H202: 15.68 | I202: 19.34 | J202: 271.5 | K202: 143.241 | L202: 66.76
D203: гор.напиток | E203: Компот из сухофруктов (75С) | F203: 200 | G203: 0.66 | H203: 0.09 | I203: 22.03 | J203: 92.8 | K203: 349
D204: хлеб бел. | E204: Хлеб пшеничный | F204: 30 | G204: 2.28 | H204: 0.24 | I204: 14.76 | J204: 70.5
D205: хлеб черн.
D206: фрукты | E206: Плоды и ягоды свежие (яблоки) | F206: 100 | G206: 0.4 | H206: 0.4 | I206: 9.8 | J206: 47
D208: итого | F208: 530 | G208: 15.82 | H208: 16.41 | I208: 65.93 | J208: 481.8 | L208: 66.76
A209: 2 | B209: 5 | C209: Обед | D209: закуска
D210: 1 блюдо
D211: 2 блюдо
D212: гарнир
D213: напиток
D214: хлеб бел.
D215: хлеб черн.
D218: итого | F218: 0 | G218: 0 | H218: 0 | I218: 0 | J218: 0 | L218: 0
A219: 2 | B219: 5 | C219: Итого за день: | F219: =F208+F218 -> 530 | G219: 15.82 | H219: 16.41 | I219: 65.93 | J219: 481.8 | L219: 66.76
A220: 2 | B220: 6 | C220: Завтрак | D220: закуска | E220: Салат из отварной моркови и свеклы с зеленым горошком к/с | F220: 60 | G220: 0.96 | H220: 2.11 | I220: 4.33 | J220: 40.5 | K220: ТТК | L220: 66.76
D221: гор.блюдо | E221: Каша гречневая рассыпчатая с маслом сливочным | F221: 153 | G221: 3.79 | H221: 4.47 | I221: 39.76 | J221: 233.8 | K221: 171
D222: гор.блюдо | E222: Котлеты "Аппетитные" | F222: 90 | G222: 12.9 | H222: 12.15 | I222: 13.15 | J222: 214.2 | K222: ТТК
D223: гор.напиток | E223: Чай с сахаром, с лимоном | F223: 200 | G223: 0.11 | H223: 0.02 | I223: 10.15 | J223: 41.32 | K223: 377
D224: хлеб бел. | E224: Хлеб пшеничный | F224: 30 | G224: 2.28 | H224: 0.24 | I224: 14.76 | J224: 70.5
D225: хлеб черн.
D226: фрукты
D228: итого | F228: =SUM(F220:F227) -> 533 | G228: =SUM(G220:G227) -> 20.04 | H228: 18.99 | I228: 82.15 | J228: 600.32 | L228: =SUM(L220:L227) -> 66.76
A229: =A220 -> 2 | B229: =B220 -> 6 | C229: Обед | D229: закуска
D230: 1 блюдо
D231: 2 блюдо
D232: гарнир
D233: напиток
D234: хлеб бел.
D235: хлеб черн.
D238: итого | F238: =SUM(F229:F237) -> 0 | G238: =SUM(G229:G237) -> 0 | H238: 0 | I238: 0 | J238: 0 | L238: =SUM(L229:L237) -> 0
A239: =A220 -> 2 | B239: =B220 -> 6 | C239: Итого за день: | F239: =F228+F238 -> 533 | G239: =G228+G238 -> 20.04 | H239: =H228+H238 -> 18.99 | I239: =I228+I238 -> 82.15 | J239: =J228+J238 -> 600.32 | L239: 66.76
C240: Среднее значение за период: | F240: =(F25+F44+F64+F84+F104+F124+F143+F162+F181+F200+F219+F239)/(IF(F25=0,0,1)+IF(F44=0,0,1)+IF(F64=0,0,1)+IF(F84=0,0,1)+IF(F104=0,0,1)+IF(F124=0,0,1)+IF(F143=0,0,1)+IF(F162=0,0,1)+IF(F181=0,0,1)+IF(F200=0,0,1)+IF(F219=0,0,1)+IF(F239=0,0,1)) -> 530 | G240: =(G25+G44+G64+G84+G104+G124+G143+G162+G181+G200+G219+G239)/(IF(G25=0,0,1)+IF(G44=0,0,1)+IF(G64=0,0,1)+IF(G84=0,0,1)+IF(G104=0,0,1)+IF(G124=0,0,1)+IF(G143=0,0,1)+IF(G162=0,0,1)+IF(G181=0,0,1)+IF(G200=0,0,1)+IF(G219=0,0,1)+IF(G239=0,0,1)) -> 18.4075 | H240: =(H25+H44+H64+H84+H104+H124+H143+H162+H181+H200+H219+H239)/(IF(H25=0,0,1)+IF(H44=0,0,1)+IF(H64=0,0,1)+IF(H84=0,0,1)+IF(H104=0,0,1)+IF(H124=0,0,1)+IF(H143=0,0,1)+IF(H162=0,0,1)+IF(H181=0,0,1)+IF(H200=0,0,1)+IF(H219=0,0,1)+IF(H239=0,0,1)) -> 18.47166667 | I240: =(I25+I44+I64+I84+I104+I124+I143+I162+I181+I200+I219+I239)/(IF(I25=0,0,1)+IF(I44=0,0,1)+IF(I64=0,0,1)+IF(I84=0,0,1)+IF(I104=0,0,1)+IF(I124=0,0,1)+IF(I143=0,0,1)+IF(I162=0,0,1)+IF(I181=0,0,1)+IF(I200=0,0,1)+IF(I219=0,0,1)+IF(I239=0,0,1)) -> 76.38 | J240: =(J25+J44+J64+J84+J104+J124+J143+J162+J181+J200+J219+J239)/(IF(J25=0,0,1)+IF(J44=0,0,1)+IF(J64=0,0,1)+IF(J84=0,0,1)+IF(J104=0,0,1)+IF(J124=0,0,1)+IF(J143=0,0,1)+IF(J162=0,0,1)+IF(J181=0,0,1)+IF(J200=0,0,1)+IF(J219=0,0,1)+IF(J239=0,0,1)) -> 553.2466667 | L240: =(L25+L44+L64+L84+L124+L143+L162+L181+L200+L239)/(IF(L25=0,0,1)+IF(L44=0,0,1)+IF(L64=0,0,1)+IF(L84=0,0,1)+IF(L124=0,0,1)+IF(L143=0,0,1)+IF(L162=0,0,1)+IF(L181=0,0,1)+IF(L200=0,0,1)+IF(L239=0,0,1)) -> 66.76
